Cogmind - Beta 11.1 @@@ ROGUE MODE // 2022.06.24 @ 17:15:10 Player: Cyurio Result: Destroyed by G-34 Mercenary with Small Laser Performance ------------- Evolutions (1) 500 Regions Visited (2) 400 Robots Destroyed (16) 80 Value Destroyed (521) 521 Prototype IDs (0) 0 Alien Tech Used (0) 0 Bonus (0) 0 TOTAL SCORE: 1501 Bonus ------- None Cogmind --------- Core Integrity 0/400 Matter 300/300 Energy 45/100 System Corruption 0% Temperature Cool (6) Movement Core (50) Location -9/Materials Parts ------- > --- POWER (1) -------- (None) > --- PROPULSION (4) --- (None) > --- UTILITY (2) ------ (None) > --- WEAPON (2) ------- (None) > --- INVENTORY (5) ---- Light Ion Engine Aluminum Leg Wheel Hardened Light Armor Plating Katana Peak State ------------ > --- POWER ------------ Light Nuclear Core > --- PROPULSION ------- Improved Hover Unit Improved Hover Unit Improved Hover Unit > --- UTILITY ---------- Small Storage Unit Weight Redist. System > --- WEAPON ----------- EM Pulse Gun Hammer > --- INVENTORY -------- Light Ion Engine Aluminum Leg Aluminum Leg Wheel Hardened Light Armor Plating Medium Laser Katana [Rating: 15] Favorites ----------- Power Light Ion Engine Engine Light Ion Engine Power Core Light Nuclear Core Propulsion Aluminum Leg Leg Aluminum Leg Hover Unit Improved Hover Unit Utility Small Storage Unit Device Weight Redist. System Storage Small Storage Unit Weapon EM Pulse Gun Energy Gun EM Pulse Gun Impact Weapon Hammer Build | -11 -10 -9 ------- Run | Scr Mat Mat Slots Evolved 2 | . . 2 Power . | . . . Propulsion 2 | . . 2 Utility . | . . . Weapon . | . . . Parts Attached 11 | . 5 6 Power 1 | . . 1 Engine . | . . . Core 1 | . . 1 Reactor . | . . . Propulsion 6 | . 2 4 Treads . | . . . Leg 2 | . 2 . Wheel . | . . . Hover 4 | . . 4 Flight . | . . . Utility 1 | . . 1 Device 1 | . . 1 Storage . | . . . Processor . | . . . Hackware . | . . . Protection . | . . . Artifact . | . . . Weapon 3 | . 3 . Energy Gun 2 | . 2 . Energy Cannon . | . . . Ballistic Gun . | . . . Ballistic Cannon . | . . . Launcher . | . . . Special Weapon . | . . . Impact Weapon 1 | . 1 . Slashing Weapon . | . . . Piercing Weapon . | . . . Special Melee Weapon . | . . . Unidentified Prototypes . | . . . Parts Lost 10 | . 3 7 Power 2 | . . 2 Propulsion 5 | . 1 4 Utility . | . . . Weapon 3 | . 2 1 Highest Loss Streak 5 | . 2 5 To Critical Strikes . | . . . Average Slot Usage (%) 77 | . 83 61 Engine 10 | . 14 1 Core 1 | . . 3 Leg 19 | . 27 . Hover 6 | . . 22 Device 1 | . . 6 Storage 13 | . 14 10 Energy Gun 13 | . 16 6 Impact Weapon 10 | . 10 10 Naked Turns 9 | . . 9 Heaviest Build 14 | 11 12 14 Greatest Support 28 | 20 20 28 Greatest Overweight (x) 1 | . 1 . Average Overweight (x) . | . . . Largest Inventory Capacity 8 | . 8 8 Average Capacity 7 | . 8 7 Most Carried 8 | . 8 7 Average Carried 6 | . 6 6 Final Capacity 8 | 8 8 5 Final Carried 8 | 6 8 5 Class Distribution -------------------- 100% | Mutant Dominant Class ---------------- Mutant | -10/Materials Mutant | -9/Materials Resources | -11 -10 -9 ----------- Run | Scr Mat Mat Matter Collected 285 | 200 30 55 Remotely . | . . . Salvage Created 718 | . 529 189 Parts 34 | . 27 7 Haulers Intercepted 1 | . 1 . Recyclers Shooed 3 | . 3 . Parts Field Recycled . | . . . Retrieved Matter . | . . . Parts Self-Destructed . | . . . Prevented . | . . . Kills | -11 -10 -9 ------- Run | Scr Mat Mat Combat Hostiles Destroyed 12 | . 8 4 Melee 2 | . 2 . Guns 5 | . 4 1 AOE 2 | . 1 1 Classes Destroyed 7 | . 5 2 Hauler 1 | . 1 . Recycler 1 | . 1 . Operator 1 | . 1 . Watcher 1 | . 1 . Grunt 10 | . 8 2 Duelist 1 | . . 1 Sentry 1 | . . 1 Best Kill Streak 2 | . 2 2 Combat Bots Only 3 | . 2 3 Max Kills in Single Turn 1 | . 1 1 Gunslinging . | . . . Exploded 1 | . 1 1 Melee 1 | . 1 . Uniques/NPCs Destroyed . | . . . Combat | -11 -10 -9 -------- Run | Scr Mat Mat Damage Taken 1224 | . 367 857 Core 410 | . 10 400 Absorbed by Shields . | . . . Core Remaining (%) 98 | 100 96 . Volleys Fired 45 | . 30 15 Largest 2 | . 2 1 Hottest 80 | . 80 40 Shots Fired 53 | . 38 15 Gun 53 | . 38 15 Cannon . | . . . Launcher . | . . . Special . | . . . Kinetic . | . . . Thermal 8 | . 8 . Explosive . | . . . Electromagnetic 45 | . 30 15 Robot Hit Streak 8 | . 8 4 Robot Miss Streak 4 | . 2 4 Penetration Max . | . . . Secondary Targets . | . . . Shots Hit Robots 57 | . 34 23 Core Hits 25 | . 19 6 Critical Kills 1 | . 1 . Critical Parts Destroyed 2 | . . 2 Critical Strikes 3 | . 1 2 Smash 3 | . 1 2 Melee Attacks 28 | . 6 22 Impact 28 | . 6 22 Slashing . | . . . Piercing . | . . . Sneak Attacks 2 | . 2 . Combat Hostiles . | . . . Follow-up Attacks . | . . . Damage Inflicted 1182 | . 687 495 Guns 506 | . 403 103 Cannons . | . . . Explosions 206 | . 122 84 Melee 470 | . 162 308 Ramming . | . . . Kinetic . | . . . Thermal 284 | . 200 84 Explosive . | . . . Electromagnetic 428 | . 325 103 Impact 470 | . 162 308 Slashing . | . . . Piercing . | . . . Highest Corruption . | . . . Average Corruption . | . . . Corruption Purged . | . . . Corruption Blocked . | . . . Overload Shots . | . . . Overflow Damage 112 | . 30 82 Projectiles . | . . . Explosions 63 | . 18 45 Melee 49 | . 12 37 Knockbacks . | . . . Impact . | . . . Kinetic . | . . . Secondary . | . . . Self-Inflicted Damage 196 | . 147 49 Shots 3 | . 2 1 Rammed . | . . . Targets Rammed . | . . . Kicked . | . . . Crushed . | . . . Highest Temperature 114 | . 114 40 Average Temperature 35 | . 50 12 Received Heat Transfer 582 | . 126 456 Siege Activations . | . . . Robots Corrupted 1 | . 1 . Combat Hostiles 1 | . 1 . Parts Fried 8 | . 5 3 Impact Corruptions 4 | . 1 3 Robots Melted . | . . . Combat Hostiles . | . . . Parts Melted . | . . . Heat Transferred 425 | . 325 100 Parts Sabotaged . | . . . Parts Stolen . | . . . Parts Stripped . | . . . Power Chain Reactions 2 | . 1 1 Missiles Intercepted . | . . . Alert | -11 -10 -9 ------- Run | Scr Mat Mat Peak Influence 308 | . 308 261 Initial 101 | . . 101 Average 181 | . 173 201 Maximum Alert Level 1 | . 1 1 Low Security (%) 50 | . 60 26 Level 1 49 | . 39 73 Level 2 . | . . . Level 3 . | . . . Level 4 . | . . . Level 5 . | . . . High Security . | . . . Max Security . | . . . Squads Dispatched 3 | . 2 1 Investigation 2 | . 1 1 Extermination . | . . . Reinforcement 1 | . 1 . Assault . | . . . Garrison . | . . . Intercept . | . . . Searches Triggered . | . . . Construction Impeded . | . . . Haulers Reinforced . | . . . Active Scanning Responses . | . . . Cargo Convoy Interrupts . | . . . Stealth | -11 -10 -9 --------- Run | Scr Mat Mat Distress Signals 3 | . 2 1 Communications Jammed . | . . . Distress Signals . | . . . Times Spotted 29 | . 14 15 Peak Tracking Total 7 | . 3 7 Tactical Retreats 7 | . 4 3 Traps | -11 -10 -9 ------- Run | Scr Mat Mat Traps Triggered 2 | . 1 1 Indirectly . | . . . Trap Hack Attempts . | . . . Triggered . | . . . Disarmed 6 | . 6 . Reprogrammed . | . . . Reused . | . . . Traps Extracted . | . . . Installed . | . . . Triggered . | . . . Machines | -11 -10 -9 ---------- Run | Scr Mat Mat Machines Disabled 1 | . 1 . Max in Single Turn 1 | . 1 . Machines Sabotaged . | . . . Garrisons Compromised . | . . . Overloaded Fab Kills . | . . . Hacking | -11 -10 -9 --------- Run | Scr Mat Mat Machines Accessed 7 | . 7 . Terminals 7 | . 7 . Fabricators . | . . . Repair Stations . | . . . Recycling Units . | . . . Scanalyzers . | . . . Garrison Access . | . . . Total Hacks 20 | . 20 . Successful 12 | . 12 . Failed 8 | . 8 . Catastrophic . | . . . Database Lockouts . | . . . Manual 14 | . 14 . Terminals 20 | . 20 . Fabricators . | . . . Repair Stations . | . . . Recycling Units . | . . . Scanalyzers . | . . . Garrison Access . | . . . Terminal Hacks 7 | . 7 . Branch Access Points 1 | . 1 . Alert Level 1 | . 1 . Locate Traps 1 | . 1 . Disarm Traps 1 | . 1 . Reprogram Traps 1 | . 1 . Registered Components 1 | . 1 . Zone Layout 1 | . 1 . Fabricator Hacks . | . . . Repair Station Hacks . | . . . Recycling Unit Hacks . | . . . Scanalyzer . | . . . Garrison Access Hacks . | . . . Unauthorized Hacks 5 | . 5 . Terminals 5 | . 5 . Track 1 | . 1 . Botnet 4 | . 4 . Fabricators . | . . . Repair Stations . | . . . Recycling Units . | . . . Scanalyzers . | . . . Garrison Access . | . . . Data Cores Recovered . | . . . Used . | . . . Hacking Detections 6 | . 6 . Full Trace Events . | . . . Feedback Events . | . . . Feedback Blocked . | . . . Robot Schematics Acquired . | . . . Robots Built . | . . . Authchips . | . . . Time . | . . . Total Robot Build Rating . | . . . Part Schematics Acquired . | . . . Parts Built . | . . . Authchips . | . . . Time . | . . . Total Part Build Rating . | . . . Parts Repaired . | . . . Time . | . . . Parts Recycled . | . . . Recycled Matter . | . . . Retrieved Matter . | . . . Retrieved Components . | . . . Parts Scanalyzed . | . . . Part Schematics Acquired . | . . . Parts Damaged . | . . . Bothacking | -11 -10 -9 ------------ Run | Scr Mat Mat Used RIF Installer . | . . . Robots Hacked . | . . . Non-combat . | . . . Combat . | . . . Robot Hacks Applied . | . . . Relay Couplers Released . | . . . Fabnet Peak Effective % . | . . . Robots Rewired . | . . . Allies Hacked . | . . . Hacks Repelled . | . . . Allies | -11 -10 -9 -------- Run | Scr Mat Mat Total Allies . | . . . Largest Group . | . . . Highest-Rated Group . | . . . Highest-Rated Ally . | . . . Total Orders . | . . . Ally Attacks . | . . . Total Damage . | . . . Kills . | . . . Allies Corrupted . | . . . Allies Melted . | . . . Intel | -11 -10 -9 ------- Run | Scr Mat Mat Robot Analysis Total . | . . . Derelict Logs Recovered . | . . . Drone Launches . | . . . Drone Recoveries . | . . . Exploration | -11 -10 -9 ------------- Run | Scr Mat Mat Turns Passed 903 | . 650 253 Spaces Moved 608 | 1 415 192 Core 60 | . . 60 Treads . | . . . Legs 416 | 1 415 . Wheels . | . . . Hover 132 | . . 132 Flight . | . . . Fastest Speed 48 | 120 120 48 Average Speed 98 | 120 121 50 Slowest Speed 190 | 120 190 60 Overloaded Moves . | . . . Propulsion Burnouts . | . . . Robots Hopped . | . . . Cave-ins Triggered . | . . . Exploration Rate (%) 27 | 1 68 14 Regions Visited 2 Branch Regions . Pre-discovered Areas . | . . . Known Exits Taken . | . . . Unknown Exits Taken 2 | 1 1 . Scrap Searched . | . . . Spaces Dug . | . . . Terrain Destroyed 35 | . 31 4 Melee . | . . . Projectile . | . . . AOE 35 | . 31 4 Terrain Rammed . | . . . Walls Destroyed . | . . . Machines Disabled . | . . . Actions | -11 -10 -9 --------- Run | Scr Mat Mat Total 815 | . 522 293 Wait 94 | . 40 54 Move 606 | . 414 192 Hop . | . . . Pick Up 17 | . 14 3 Fast Attach 3 | . 2 1 Attach 4 | . 1 3 Detach . | . . . Swap 4 | . 2 2 Drop 14 | . 13 1 Fire 45 | . 30 15 Melee 28 | . 6 22 Ram . | . . . Kick . | . . . Crush . | . . . Escape Stasis . | . . . Rewire . | . . . Trap . | . . . Miscellaneous . | . . . Route ------- -11/Scrapyard -10/Materials (discovered 4 exits: [*Mat x2] / *Min x2) -9/Materials History --------- Turn | Location | Event 1 | -11/Scrapyard | Discovered new exit (range 0) 1 | -11/Scrapyard | Entered Materials 257 | -10/Materials | Identified exit to Mines 308 | -10/Materials | Build established: Mutant 373 | -10/Materials | Discovered new exit (range 9) 624 | -10/Materials | Discovered new exit (range 14) 651 | -10/Materials | Entered another Materials area 651 | -9/Materials | Evolved 2 slots: Propulsion x2 840 | -9/Materials | Lost 5 parts (1p3n1w) 883 | -9/Materials | Core integrity fell below 50% 895 | -9/Materials | Released all parts (3) 900 | -9/Materials | Core integrity fell below 20% 904 | -9/Materials | Destroyed by G-34 Mercenary with Small Laser Last Messages --------------- 00754_ Acquired Hrd. Light Armor Plating. 00762_ Triggered Alarm Trap. 00762_ An alarm sounds. 00762_ ALERT: Alarm triggered, dispatching investigation squad. 00783_ Lgt. Nuclear Core destroyed. 00785_ Imp. Hover Unit destroyed. 00787_ G-47 Trooper destroyed. 00796_ R-06 Scavenger collects Particle Gun. 00797_ EM Pulse Gun destroyed. 00803_ Imp. Hover Unit destroyed. 00808_ Critical hit (Burn: +37). 00809_ Imp. Hover Unit destroyed. 00823_ R-06 Scavenger collects Ion Engine. 00826_ R-06 Scavenger collects Sml. Laser. 00831_ R-06 Scavenger collects Corrupted Imp. Aluminum Leg. 00853_ W-16 Scout sends out distress signal. 00895_ Released Hammer. 00895_ Released Sml. Storage Unit. 00895_ Released Weight Redist. System. 00903_ R-06 Scavenger collects Hammer. Map ----- +----------------------------------------------------+ | ?????????????????????????????????????????????????? | | ?????????????????????????????????????????????????? | | ?????????????????????????????????????????????????? | | ?????????????????????????????????????????????????? | | ?????????????????????????????????????????????????? | | ?????????????????????????????????????????????????? | | ?????????????????????????????????????????????????? | | ?????????????????????????????????????????????????? | | ?????????????????????????????????????????????????? | | ?????????????????????????????????????????????????? | | ???????????????????????? ??????????????????????? | | ???????????????????????? ??????????????????????? | | ???????????????????????? ??????????????????????? | | ???????????????????????# #?????????????????????? | | ???????????????????????# #?????????????????????? | | ???????????????????????# r#?????????????????????? | | ???????????????????????# #?????????????????????? | | ???????????????????????# #?????????????????????? | | ???????????????????????#ga #?????????????????????? | | ???????????????????????? g ??????????????????????? | | ???????????????????????? r??????????????????????? | | ???????????????????????? ??????????????????????? | | ???????????????????????? ??????????????????????? | | ????????????????????????# #??????????????????????? | | ????????????????????????# #??????????????????????? | | ????????????????????????#@######?????????????????? | | ????????????????????????# r= #?????????????????? | | ????????????????????????#[!! !#??##?????????????? | | ????????????????????????#!!! ### #####?????????? | | ????????????????????????# !! +] #?????????? | | ????????????????????????# # " #?????????? | | ???????????????#######??# gY#[ """ #?????????? | | ???????????????# #######g#/# """ #?????????? | | ???????????????# % # """ #?????????? | | ???????????????# + "" #?????????? | | ???????????????# # """ #?????????? | | ???????????????# ########### "" #?????????? | | ???????????????## ##?????????# "" #?????????? | | ????????????????# #??????????# " #?????????? | | ????????????????# #??????????# #?????????? | | ????????????????# #??????????#/#######?????????? | | ????????????????# #??????????# #???????????????? | | ????????????????# #########?## #???????????????? | | ????????????????# ## ## #???????????????? | | ????????????????# ## """ ## #???????????????? | | ????????????????# ## """ ## #???????????????? | | ????????????????# ## """ ## #######?????????? | | ????????????????# ## ## ## #?????????? | | ????????????????# ## """ # + #?????????? | | ??????########### ## """ # # #?????????? | +----------------------------------------------------+ Best States ------------- Heat Dissipation 28 Energy Generation 14 Energy Capacity 160 Matter Stores 300 Matter Capacity 300 Sight Range 16 Terrain Scan Density 10 Additional Mass Support 6 Evasion (%) 55 Item Schematics ----------------- None Robot Schematics ------------------ None Fabricated ------------ Nothing Alien Tech Used ----------------- None Achievements -------------- None Challenges ------------ None Game ------ Seed LightningPowerJammer Manual? 0 Play Time 00:13:31 Cumulative 36.8 hours Start 2022.06.24 @ 17:01:25 End 2022.06.24 @ 17:15:10 Sessions 1 Manual Loads 0 Difficulty Rogue Special Mode None Game No. 61 Rogue 61 Adventurer 0 Explorer 0 Win Type - Total 0 Types 0/0/0/0/0/0/0/0/0 Lore% 26 Gallery% 30 Achievement% 27 Wizard Run 0 Options --------- ASCII 0 Keyboard 1 Movement Vi Keybinds 0 Fullscreen 1 Font 24/Smallcaps Map View 76x50 Tactical HUD 1 Map Filters NONE Filters NONE Steam 1 RUN: d7dd7c76-9994-43cc-92c5-c743ed18d772